{"text_format":"3","workbook":"xlsx","n_sheets":7,"sheets":["Maandag","dinsdag","woensdag","donderdag","vrijdag","zaterdag","Zondag"],"not_rendered":{"defined_names":24},"read":"whole","date_system":"1900"}

{"sheet":"Maandag","index":0,"n_rows":10,"n_cols":13,"rows_kept":10,"merged":[[1,1,2,1],[1,2,1,10],[1,11,1,12],[2,2,2,10],[2,11,2,12]]}
[null,"DIENSTROOSTER"]
[null,"MAANDAG","Voor de week van: ",{"$nulls":8},"DATUM"]
[null,null,"Naam van afdeling: ",{"$nulls":8},"AFDELING"]
[null,"Naam van werknemer","07:00","08:00","09:00","10:00","11:00","12:00","13:00","14:00","15:00","Ziek?","TOTAAL"]
[null,"Marloe de B.","manager","manager","manager","manager","manager","manager","manager","manager","manager",null,{"$f":"IFERROR(COUNTIF(Maandag[[#This Row],[07:00]:[15:00]],\"*\"),\"\")","v":9}]
[null,"Egbert B.",null,"kassamedewerker","kassamedewerker","kassamedewerker","kassamedewerker",{"$nulls":5},{"$f":"IFERROR(COUNTIF(Maandag[[#This Row],[07:00]:[15:00]],\"*\"),\"\")","v":4}]
[null,"Floris W.",null,"receptie","receptie","receptie","receptie ","receptie","receptie","receptie",null,null,{"$f":"IFERROR(COUNTIF(Maandag[[#This Row],[07:00]:[15:00]],\"*\"),\"\")","v":7}]
[null,"Filip S.",null,"receptie","receptie","receptie","receptie ","receptie","receptie","receptie",null,null,{"$f":"IFERROR(COUNTIF(Maandag[[#This Row],[07:00]:[15:00]],\"*\"),\"\")","v":7}]
[null,"Pieter-Bas S.",{"$nulls":10},{"$f":"IFERROR(COUNTIF(Maandag[[#This Row],[07:00]:[15:00]],\"*\"),\"\")","v":0}]
[null,"Fransje V.",{"$nulls":5},"kassamedewerker","kassamedewerker","kassamedewerker","kassamedewerker",null,{"$f":"IFERROR(COUNTIF(Maandag[[#This Row],[07:00]:[15:00]],\"*\"),\"\")","v":4}]

{"sheet":"dinsdag","index":1,"n_rows":10,"n_cols":13,"rows_kept":10,"merged":[[1,1,2,1],[1,2,1,10],[1,11,1,12],[2,2,2,10],[2,11,2,12]]}
[null,{"$f":"SHIFT_SCHEDULE_Title","v":"DIENSTROOSTER"}]
[null,"DINSDAG","Voor de week van: ",{"$nulls":8},{"$f":"DATUM","v":"DATUM"}]
[null,null,"Naam van afdeling: ",{"$nulls":8},{"$f":"AFDELING","v":"AFDELING"}]
[null,"Naam van werknemer","07:00","08:00","09:00","10:00","11:00","12:00","13:00","14:00","15:00","Ziek?","TOTAAL"]
[null,"Marloe de B.","manager","manager","manager","manager","manager","manager","manager","manager","manager",null,{"$f":"IFERROR(COUNTIF(Dinsdag[[#This Row],[07:00]:[15:00]],\"*\"),\"\")","v":9}]
[null,"Egbert B.",null,"kassamedewerker","kassamedewerker","kassamedewerker","kassamedewerker",{"$nulls":5},{"$f":"IFERROR(COUNTIF(Dinsdag[[#This Row],[07:00]:[15:00]],\"*\"),\"\")","v":4}]
[null,"Floris W.",null,"receptie","receptie","receptie","receptie ","receptie","receptie","receptie",null,null,{"$f":"IFERROR(COUNTIF(Dinsdag[[#This Row],[07:00]:[15:00]],\"*\"),\"\")","v":7}]
[null,"Filip S.",null,"receptie","receptie","receptie","receptie ","receptie","receptie","receptie",null,null,{"$f":"IFERROR(COUNTIF(Dinsdag[[#This Row],[07:00]:[15:00]],\"*\"),\"\")","v":7}]
[null,"Pieter-Bas S.",{"$nulls":9},"Ziek",{"$f":"IFERROR(COUNTIF(Dinsdag[[#This Row],[07:00]:[15:00]],\"*\"),\"\")","v":0}]
[null,"Fransje V.",{"$nulls":5},"kassamedewerker","kassamedewerker","kassamedewerker","kassamedewerker",null,{"$f":"IFERROR(COUNTIF(Dinsdag[[#This Row],[07:00]:[15:00]],\"*\"),\"\")","v":4}]

{"sheet":"woensdag","index":2,"n_rows":10,"n_cols":13,"rows_kept":10,"merged":[[1,1,2,1],[1,2,1,10],[1,11,1,12],[2,2,2,10],[2,11,2,12]]}
[null,{"$f":"SHIFT_SCHEDULE_Title","v":"DIENSTROOSTER"}]
[null,"WOENSDAG","Voor de week van: ",{"$nulls":8},{"$f":"DATUM","v":"DATUM"}]
[null,null,"Naam van afdeling: ",{"$nulls":8},{"$f":"AFDELING","v":"AFDELING"}]
[null,"Naam van werknemer","07:00","08:00","09:00","10:00","11:00","12:00","13:00","14:00","15:00","Ziek?","TOTAAL"]
[null,"Marloe de B.","manager","manager","manager","manager","manager","manager","manager","manager","manager",null,{"$f":"IFERROR(COUNTIF(Woensdag[[#This Row],[07:00]:[15:00]],\"*\"),\"\")","v":9}]
[null,"Egbert B.",null,"kassamedewerker","kassamedewerker","kassamedewerker","kassamedewerker",{"$nulls":5},{"$f":"IFERROR(COUNTIF(Woensdag[[#This Row],[07:00]:[15:00]],\"*\"),\"\")","v":4}]
[null,"Floris W.",null,"receptie","receptie","receptie","receptie ","receptie","receptie","receptie",null,null,{"$f":"IFERROR(COUNTIF(Woensdag[[#This Row],[07:00]:[15:00]],\"*\"),\"\")","v":7}]
[null,"Filip S.",null,"receptie","receptie","receptie","receptie ","receptie","receptie","receptie",null,null,{"$f":"IFERROR(COUNTIF(Woensdag[[#This Row],[07:00]:[15:00]],\"*\"),\"\")","v":7}]
[null,"Pieter-Bas S.",{"$nulls":9},"Ziek",{"$f":"IFERROR(COUNTIF(Woensdag[[#This Row],[07:00]:[15:00]],\"*\"),\"\")","v":0}]
[null,"Fransje V.",{"$nulls":5},"kassamedewerker","kassamedewerker","kassamedewerker","kassamedewerker",null,{"$f":"IFERROR(COUNTIF(Woensdag[[#This Row],[07:00]:[15:00]],\"*\"),\"\")","v":4}]

{"sheet":"donderdag","index":3,"n_rows":10,"n_cols":13,"rows_kept":10,"merged":[[1,1,2,1],[1,2,1,10],[1,11,1,12],[2,2,2,10],[2,11,2,12]]}
[null,{"$f":"SHIFT_SCHEDULE_Title","v":"DIENSTROOSTER"}]
[null,"DONDERDAG","Voor de week van: ",{"$nulls":8},{"$f":"DATUM","v":"DATUM"}]
[null,null,"Naam van afdeling: ",{"$nulls":8},{"$f":"AFDELING","v":"AFDELING"}]
[null,"Naam van werknemer","07:00","08:00","09:00","10:00","11:00","12:00","13:00","14:00","15:00","Ziek?","TOTAAL"]
[null,"Marloe de B.","manager","manager","manager","manager","manager","manager","manager","manager","manager",null,{"$f":"IFERROR(COUNTIF(Donderdag[[#This Row],[07:00]:[15:00]],\"*\"),\"\")","v":9}]
[null,"Egbert B.",null,"kassamedewerker","kassamedewerker","kassamedewerker","kassamedewerker",{"$nulls":5},{"$f":"IFERROR(COUNTIF(Donderdag[[#This Row],[07:00]:[15:00]],\"*\"),\"\")","v":4}]
[null,"Floris W.",null,"receptie","receptie","receptie","receptie ","receptie","receptie","receptie",null,null,{"$f":"IFERROR(COUNTIF(Donderdag[[#This Row],[07:00]:[15:00]],\"*\"),\"\")","v":7}]
[null,"Filip S.",null,"receptie","receptie","receptie","receptie ","receptie","receptie","receptie",null,null,{"$f":"IFERROR(COUNTIF(Donderdag[[#This Row],[07:00]:[15:00]],\"*\"),\"\")","v":7}]
[null,"Pieter-Bas S.",{"$nulls":9},"Ziek",{"$f":"IFERROR(COUNTIF(Donderdag[[#This Row],[07:00]:[15:00]],\"*\"),\"\")","v":0}]
[null,"Fransje V.",{"$nulls":5},"kassamedewerker","kassamedewerker","kassamedewerker","kassamedewerker",null,{"$f":"IFERROR(COUNTIF(Donderdag[[#This Row],[07:00]:[15:00]],\"*\"),\"\")","v":4}]

{"sheet":"vrijdag","index":4,"n_rows":10,"n_cols":13,"rows_kept":10,"merged":[[1,1,2,1],[1,2,1,10],[1,11,1,12],[2,2,2,10],[2,11,2,12]]}
[null,{"$f":"SHIFT_SCHEDULE_Title","v":"DIENSTROOSTER"}]
[null,"VRIJDAG","Voor de week van: ",{"$nulls":8},{"$f":"DATUM","v":"DATUM"}]
[null,null,"Naam van afdeling: ",{"$nulls":8},{"$f":"AFDELING","v":"AFDELING"}]
[null,"Naam van werknemer","07:00","08:00","09:00","10:00","11:00","12:00","13:00","14:00","15:00","Ziek?","TOTAAL"]
[null,"Marloe de B.","manager","manager","manager","manager","manager","manager","manager","manager","manager",null,{"$f":"IFERROR(COUNTIF(Vrijdag[[#This Row],[07:00]:[15:00]],\"*\"),\"\")","v":9}]
[null,"Egbert B.",null,"kassamedewerker","kassamedewerker","kassamedewerker","kassamedewerker",{"$nulls":5},{"$f":"IFERROR(COUNTIF(Vrijdag[[#This Row],[07:00]:[15:00]],\"*\"),\"\")","v":4}]
[null,"Floris W.",null,"receptie","receptie","receptie","receptie ","receptie","receptie","receptie",null,null,{"$f":"IFERROR(COUNTIF(Vrijdag[[#This Row],[07:00]:[15:00]],\"*\"),\"\")","v":7}]
[null,"Filip S.",null,"receptie","receptie","receptie","receptie ","receptie","receptie","receptie",null,null,{"$f":"IFERROR(COUNTIF(Vrijdag[[#This Row],[07:00]:[15:00]],\"*\"),\"\")","v":7}]
[null,"Pieter-Bas S.",{"$nulls":9},"Ziek",{"$f":"IFERROR(COUNTIF(Vrijdag[[#This Row],[07:00]:[15:00]],\"*\"),\"\")","v":0}]
[null,"Fransje V.",{"$nulls":5},"kassamedewerker","kassamedewerker","kassamedewerker","kassamedewerker",null,{"$f":"IFERROR(COUNTIF(Vrijdag[[#This Row],[07:00]:[15:00]],\"*\"),\"\")","v":4}]

{"sheet":"zaterdag","index":5,"n_rows":10,"n_cols":13,"rows_kept":10,"merged":[[1,1,2,1],[1,2,1,10],[1,11,1,12],[2,2,2,10],[2,11,2,12]]}
[null,{"$f":"SHIFT_SCHEDULE_Title","v":"DIENSTROOSTER"}]
[null,"ZATERDAG","Voor de week van: ",{"$nulls":8},{"$f":"DATUM","v":"DATUM"}]
[null,null,"Naam van afdeling: ",{"$nulls":8},{"$f":"AFDELING","v":"AFDELING"}]
[null,"Naam van werknemer","07:00","08:00","09:00","10:00","11:00","12:00","13:00","14:00","15:00","Ziek?","TOTAAL"]
[null,"Marloe de B.","manager","manager","manager","manager","manager","manager","manager","manager","manager",null,{"$f":"IFERROR(COUNTIF(Zaterdag[[#This Row],[07:00]:[15:00]],\"*\"),\"\")","v":9}]
[null,"Egbert B.",null,"kassamedewerker","kassamedewerker","kassamedewerker","kassamedewerker",{"$nulls":5},{"$f":"IFERROR(COUNTIF(Zaterdag[[#This Row],[07:00]:[15:00]],\"*\"),\"\")","v":4}]
[null,"Floris W.",null,"receptie","receptie","receptie","receptie ","receptie","receptie","receptie",null,null,{"$f":"IFERROR(COUNTIF(Zaterdag[[#This Row],[07:00]:[15:00]],\"*\"),\"\")","v":7}]
[null,"Filip S.",null,"receptie","receptie","receptie","receptie ","receptie","receptie","receptie",null,null,{"$f":"IFERROR(COUNTIF(Zaterdag[[#This Row],[07:00]:[15:00]],\"*\"),\"\")","v":7}]
[null,"Pieter-Bas S.",{"$nulls":9},"Ziek",{"$f":"IFERROR(COUNTIF(Zaterdag[[#This Row],[07:00]:[15:00]],\"*\"),\"\")","v":0}]
[null,"Fransje V.",{"$nulls":5},"kassamedewerker","kassamedewerker","kassamedewerker","kassamedewerker",null,{"$f":"IFERROR(COUNTIF(Zaterdag[[#This Row],[07:00]:[15:00]],\"*\"),\"\")","v":4}]

{"sheet":"Zondag","index":6,"n_rows":10,"n_cols":13,"rows_kept":10,"merged":[[1,1,2,1],[1,2,1,10],[1,11,1,12],[2,2,2,10],[2,11,2,12]]}
[null,{"$f":"SHIFT_SCHEDULE_Title","v":"DIENSTROOSTER"}]
[null,"ZONDAG","Voor de week van: ",{"$nulls":8},{"$f":"DATUM","v":"DATUM"}]
[null,null,"Naam van afdeling: ",{"$nulls":8},{"$f":"AFDELING","v":"AFDELING"}]
[null,"Naam van werknemer","07:00","08:00","09:00","10:00","11:00","12:00","13:00","14:00","15:00","Ziek?","TOTAAL"]
[null,"Marloe de B.","manager","manager","manager","manager","manager","manager","manager","manager","manager",null,{"$f":"IFERROR(COUNTIF(Zondag[[#This Row],[07:00]:[15:00]],\"*\"),\"\")","v":9}]
[null,"Egbert B.",null,"kassamedewerker","kassamedewerker","kassamedewerker","kassamedewerker",{"$nulls":5},{"$f":"IFERROR(COUNTIF(Zondag[[#This Row],[07:00]:[15:00]],\"*\"),\"\")","v":4}]
[null,"Floris W.",null,"receptie","receptie","receptie","receptie ","receptie","receptie","receptie",null,null,{"$f":"IFERROR(COUNTIF(Zondag[[#This Row],[07:00]:[15:00]],\"*\"),\"\")","v":7}]
[null,"Filip S.",null,"receptie","receptie","receptie","receptie ","receptie","receptie","receptie",null,null,{"$f":"IFERROR(COUNTIF(Zondag[[#This Row],[07:00]:[15:00]],\"*\"),\"\")","v":7}]
[null,"Pieter-Bas S.",{"$nulls":9},"Ziek",{"$f":"IFERROR(COUNTIF(Zondag[[#This Row],[07:00]:[15:00]],\"*\"),\"\")","v":0}]
[null,"Fransje V.",{"$nulls":5},"kassamedewerker","kassamedewerker","kassamedewerker","kassamedewerker",null,{"$f":"IFERROR(COUNTIF(Zondag[[#This Row],[07:00]:[15:00]],\"*\"),\"\")","v":4}]